Cogmind - Beta 12 @@@ ROGUE MODE // 2023.08.23 @ 14:52:24 Player: ILikeMonsters1890 Result: Destroyed by D-53 Grenadier with Mini Grenade Launcher Performance ------------- Evolutions (0) 0 Regions Visited (4) 800 Robots Destroyed (23) 115 Value Destroyed (377) 377 Prototype IDs (0) 0 Alien Tech Used (0) 0 Bonus (0) 0 TOTAL SCORE: 1292 Bonus ------- None Cogmind --------- Core Integrity 0/250 Matter 188/300 Energy 98/100 System Corruption 2% Temperature Cool (1) Movement Core (200) Ox3 Location -9/Mines Parts ------- > --- POWER (1) -------- (None) > --- PROPULSION (2) --- (None) > --- UTILITY (2) ------ Medium Storage Unit > --- WEAPON (2) ------- (None) > --- INVENTORY (10) --- Aluminum Leg Aluminum Leg Aluminum Leg Improved Aluminum Leg Cooling System Large Storage Unit Seismic Detector Small Laser Peak State ------------ > --- POWER ------------ Light Nuclear Core > --- PROPULSION ------- Improved Aluminum Leg Improved Aluminum Leg > --- UTILITY ---------- Medium Storage Unit Medium Armor Plating > --- WEAPON ----------- Small Laser Assault Rifle > --- INVENTORY -------- Ion Engine Aluminum Leg Aluminum Leg Improved Aluminum Leg Improved Aluminum Leg Cooling System Large Storage Unit Sensor Array Light Assault Rifle Grenade Launcher [Rating: 13] Favorites ----------- Power Ion Engine Engine Ion Engine Power Core Light Nuclear Core Propulsion Aluminum Leg Leg Aluminum Leg Utility Medium Storage Unit Device Seismic Detector Storage Medium Storage Unit Protection Medium Armor Plating Weapon Assault Rifle Energy Gun Small Laser Ballistic Gun Assault Rifle Launcher Mini Grenade Launcher Special Melee Weapon Datajack Build | -11 -10 -10 -10 -9 ------- Run | Jun Mat Min Exi Min Slots Evolved . | . . . . . Power . | . . . . . Propulsion . | . . . . . Utility . | . . . . . Weapon . | . . . . . Parts Attached 28 | 2 12 8 2 4 Power 2 | . 1 1 . . Engine 1 | . . 1 . . Core 1 | . 1 . . . Reactor . | . . . . . Propulsion 3 | . 2 . . 1 Treads . | . . . . . Leg 3 | . 2 . . 1 Wheel . | . . . . . Hover . | . . . . . Flight . | . . . . . Utility 6 | 1 4 1 . . Device 3 | 1 2 . . . Storage 1 | . 1 . . . Processor . | . . . . . Hackware . | . . . . . Protection 2 | . 1 1 . . Artifact . | . . . . . Weapon 17 | 1 5 6 2 3 Energy Gun 3 | . 3 . . . Energy Cannon . | . . . . . Ballistic Gun 10 | 1 1 4 2 2 Ballistic Cannon . | . . . . . Launcher 3 | . . 2 . 1 Special Weapon . | . . . . . Impact Weapon . | . . . . . Slashing Weapon . | . . . . . Piercing Weapon . | . . . . . Special Melee Weapon 1 | . 1 . . . Unidentified Prototypes . | . . . . . Parts Lost 13 | . 1 3 . 9 Power 2 | . . 1 . 1 Propulsion 3 | . . . . 3 Utility 2 | . . 1 . 1 Weapon 6 | . 1 1 . 4 Highest Loss Streak 9 | . 1 3 . 9 To Critical Strikes . | . . . . . Average Slot Usage (%) 97 | . 99 97 94 91 Engine 7 | . 3 11 14 11 Core 6 | . 10 1 . . Leg 27 | . 28 28 28 25 Device 7 | . 13 . . . Storage 14 | . 14 14 14 14 Protection 6 | . . 12 14 12 Energy Gun 7 | . 13 . . . Ballistic Gun 18 | . 14 26 22 22 Naked Turns . | . . . . . Heaviest Build 26 | 14 25 26 25 25 Greatest Support 26 | 20 26 26 26 26 Greatest Overweight (x) . | . . . . . Average Overweight (x) . | . . . . . Largest Inventory Capacity 10 | 8 10 10 10 10 Average Capacity 9 | 8 9 10 10 10 Most Carried 10 | 6 10 10 10 10 Average Carried 8 | 4 8 9 10 9 Final Capacity 10 | 8 10 10 10 10 Final Carried 10 | 5 10 10 10 8 Class Distribution -------------------- 100% | Mutant Dominant Class ---------------- Mutant | -10/Materials Mutant | -10/Mines Mutant | -10/Exiles Mutant | -9/Mines Resources | -11 -10 -10 -10 -9 ----------- Run | Jun Mat Min Exi Min Matter Collected 780 | 312 211 121 . 136 Remotely . | . . . . . Salvage Created 732 | 204 360 126 . 42 Parts 47 | 11 20 16 . . Haulers Intercepted 2 | . 2 . . . Recyclers Shooed 4 | 1 3 . . . Parts Field Recycled . | . . . . . Retrieved Matter . | . . . . . Parts Self-Destructed . | . . . . . Prevented . | . . . . . Kills | -11 -10 -10 -10 -9 ------- Run | Jun Mat Min Exi Min Combat Hostiles Destroyed 31 | . 4 8 . 19 Guns 7 | . 4 2 . 1 AOE 24 | . . 6 . 18 Classes Destroyed 7 | 2 3 1 . 1 Tunneler 6 | 5 . 1 . . Hauler 2 | . 2 . . . Recycler 2 | 1 1 . . . Watcher 1 | . 1 . . . Swarmer 6 | . . 6 . . Grunt 6 | . 4 2 . . Assembled 19 | . . . . 19 Best Kill Streak 19 | 2 3 3 . 19 Combat Bots Only 19 | . 2 3 . 19 Max Kills in Single Turn 4 | 1 1 2 . 4 Gunslinging . | . . . . . Exploded 4 | . . 2 . 4 Melee . | . . . . . Uniques/NPCs Destroyed . | . . . . . Combat | -11 -10 -10 -10 -9 -------- Run | Jun Mat Min Exi Min Damage Taken 1423 | . 201 527 . 695 Core 254 | . 24 62 . 168 Absorbed by Shields . | . . . . . Core Remaining (%) 100 | 100 . . . . Volleys Fired 115 | 23 50 26 . 16 Largest 2 | 2 2 2 . 2 Hottest 90 | 40 90 60 . 40 Shots Fired 211 | 46 100 43 . 22 Gun 195 | 46 100 37 . 12 Cannon . | . . . . . Launcher 16 | . . 6 . 10 Special . | . . . . . Kinetic 153 | 46 63 32 . 12 Thermal 42 | . 37 5 . . Explosive 16 | . . 6 . 10 Electromagnetic . | . . . . . Robot Hit Streak 10 | 6 8 10 . 5 Robot Miss Streak 4 | 3 4 1 . 3 Penetration Max . | . . . . . Secondary Targets 2 | . 1 1 . . Max Gunslinging Chain 1 | . 1 1 . . Shots Hit Robots 132 | 29 62 31 . 10 Core Hits 100 | 10 24 19 . 47 Critical Kills . | . . . . . Critical Parts Destroyed 1 | . 1 . . . Critical Strikes 1 | . 1 . . . Destroy 1 | . 1 . . . Melee Attacks . | . . . . . Impact . | . . . . . Slashing . | . . . . . Piercing . | . . . . . Sneak Attacks . | . . . . . Combat Hostiles . | . . . . . Follow-up Attacks . | . . . . . Damage Inflicted 2782 | 302 726 622 . 1132 Guns 1395 | 293 714 320 . 68 Cannons . | . . . . . Explosions 1352 | . . 288 . 1064 Melee . | . . . . . Ramming 35 | 9 12 14 . . Kinetic 1076 | 293 437 278 . 68 Thermal 319 | . 277 42 . . Explosive 1352 | . . 288 . 1064 Electromagnetic . | . . . . . Impact . | . . . . . Slashing . | . . . . . Piercing . | . . . . . Highest Corruption 2 | . 2 2 2 2 Average Corruption 2 | . 2 2 2 2 Corruption Purged . | . . . . . Corruption Blocked . | . . . . . Effects 14 | . 2 3 6 3 Message Errors 3 | . . . 2 1 Matter Fused 3 | . 1 1 1 . Energy Discharges 2 | . 1 1 . . Data Loss (minor) 3 | . . . 2 1 Data Loss (major) 1 | . . 1 . . Alerts 2 | . . . 1 1 Overload Shots . | . . . . . Overflow Damage 42 | . . . . 42 Projectiles . | . . . . . Explosions 42 | . . . . 42 Melee . | . . . . . Knockbacks . | . . . . . Impact . | . . . . . Kinetic . | . . . . . Secondary . | . . . . . Self-Inflicted Damage 68 | . . . . 68 Shots 2 | . . . . 2 Rammed . | . . . . . Targets Rammed 15 | 3 6 6 . . Kicked 15 | 3 6 6 . . Crushed . | . . . . . Highest Temperature 264 | . 264 218 . 6 Average Temperature 78 | . 56 109 . 4 Received Heat Transfer 426 | . 123 303 . . Effects 3 | . . 3 . . Energy Bleed 1 | . . 1 . . Interference 2 | . . 2 . . Siege Activations . | . . . . . Robots Corrupted . | . . . . . Combat Hostiles . | . . . . . Parts Fried . | . . . . . Impact Corruptions . | . . . . . Robots Melted . | . . . . . Combat Hostiles . | . . . . . Parts Melted . | . . . . . Heat Transferred 785 | . 685 100 . . Parts Sabotaged . | . . . . . Parts Stolen . | . . . . . Parts Stripped . | . . . . . Power Chain Reactions . | . . . . . Missiles Intercepted . | . . . . . Alert | -11 -10 -10 -10 -9 ------- Run | Jun Mat Min Exi Min Peak Influence 225 | 30 118 225 . 35 Initial 23 | . 19 23 . . Average 65 | 17 56 130 . 12 Maximum Alert Level 1 | . . 1 . . Low Security (%) 95 | 100 100 78 . 100 Level 1 4 | . . 21 . . Level 2 . | . . . . . Level 3 . | . . . . . Level 4 . | . . . . . Level 5 . | . . . . . High Security . | . . . . . Max Security . | . . . . . Squads Dispatched . | . . . . . Investigation . | . . . . . Extermination . | . . . . . Reinforcement . | . . . . . Assault . | . . . . . Garrison . | . . . . . Intercept . | . . . . . Searches Triggered . | . . . . . Construction Impeded . | . . . . . Haulers Reinforced . | . . . . . Active Scanning Responses . | . . . . . Cargo Convoy Interrupts . | . . . . . Stealth | -11 -10 -10 -10 -9 --------- Run | Jun Mat Min Exi Min Distress Signals 1 | . 1 . . . Communications Jammed . | . . . . . Distress Signals . | . . . . . Times Spotted 38 | . 14 8 . 16 Peak Tracking Total 9 | . 3 3 . 9 Tactical Retreats . | . . . . . Traps | -11 -10 -10 -10 -9 ------- Run | Jun Mat Min Exi Min Traps Triggered 1 | . 1 . . . Indirectly . | . . . . . Trap Hack Attempts 6 | . 6 . . . Triggered . | . . . . . Disarmed . | . . . . . Reprogrammed 1 | . 1 . . . Reused . | . . . . . Traps Extracted . | . . . . . Installed . | . . . . . Triggered . | . . . . . Machines | -11 -10 -10 -10 -9 ---------- Run | Jun Mat Min Exi Min Machines Disabled . | . . . . . Max in Single Turn . | . . . . . Machines Repaired . | . . . . . Machines Sabotaged . | . . . . . Overloaded Fab Kills . | . . . . . Hacking | -11 -10 -10 -10 -9 --------- Run | Jun Mat Min Exi Min Machines Accessed 12 | . 8 . 4 . Terminals 6 | . 6 . . . Fabricators . | . . . . . Repair Stations . | . . . . . Recycling Units 2 | . 2 . . . Scanalyzers . | . . . . . Garrison Access . | . . . . . Total Hacks 28 | . 24 . 4 . Successful 15 | . 11 . 4 . Failed 13 | . 13 . . . Catastrophic 4 | . 4 . . . Database Lockouts . | . . . . . Manual 4 | . 3 . 1 . Terminals 20 | . 20 . . . Fabricators . | . . . . . Repair Stations . | . . . . . Recycling Units 4 | . 4 . . . Scanalyzers . | . . . . . Garrison Access . | . . . . . Terminal Hacks 13 | . 9 . 4 . Record 4 | . . . 4 . Level Access Points 1 | . 1 . . . Branch Access Points 1 | . 1 . . . Alert Level 1 | . 1 . . . Locate Traps 3 | . 3 . . . Hauler Manifests 1 | . 1 . . . Zone Layout 2 | . 2 . . . Fabricator Hacks . | . . . . . Repair Station Hacks . | . . . . . Recycling Unit Hacks 1 | . 1 . . . Retrieve Components 1 | . 1 . . . Scanalyzer . | . . . . . Garrison Access Hacks . | . . . . . Unauthorized Hacks 1 | . 1 . . . Terminals 1 | . 1 . . . Operators 1 | . 1 . . . Fabricators . | . . . . . Repair Stations . | . . . . . Recycling Units . | . . . . . Scanalyzers . | . . . . . Garrison Access . | . . . . . Data Cores Recovered . | . . . . . Used . | . . . . . Hacking Detections 8 | . 8 . . . Full Trace Events 1 | . 1 . . . Feedback Events . | . . . . . Feedback Blocked . | . . . . . Robot Schematics Acquired . | . . . . . Robots Built . | . . . . . Authchips . | . . . . . Time . | . . . . . Total Robot Build Rating . | . . . . . Part Schematics Acquired . | . . . . . Parts Built . | . . . . . Authchips . | . . . . . Time . | . . . . . Total Part Build Rating . | . . . . . Parts Repaired . | . . . . . Time . | . . . . . Parts Recycled . | . . . . . Recycled Matter . | . . . . . Retrieved Matter . | . . . . . Retrieved Components 2 | . 2 . . . Parts Scanalyzed . | . . . . . Part Schematics Acquired . | . . . . . Parts Damaged . | . . . . . Bothacking | -11 -10 -10 -10 -9 ------------ Run | Jun Mat Min Exi Min Used RIF Installer . | . . . . . Robots Hacked . | . . . . . Non-combat . | . . . . . Combat . | . . . . . Robot Hacks Applied . | . . . . . Relay Couplers Released . | . . . . . Fabnet Peak Effective % . | . . . . . Robots Rewired . | . . . . . Allies Hacked . | . . . . . Hacks Repelled . | . . . . . Allies | -11 -10 -10 -10 -9 -------- Run | Jun Mat Min Exi Min Total Allies . | . . . . . Largest Group . | . . . . . Highest-Rated Group . | . . . . . Highest-Rated Ally . | . . . . . Total Orders . | . . . . . Ally Attacks . | . . . . . Total Damage . | . . . . . Kills . | . . . . . Allies Corrupted . | . . . . . Allies Melted . | . . . . . Intel | -11 -10 -10 -10 -9 ------- Run | Jun Mat Min Exi Min Robot Analysis Total . | . . . . . Derelict Logs Recovered . | . . . . . Drone Launches . | . . . . . Drone Recoveries . | . . . . . Exploration | -11 -10 -10 -10 -9 ------------- Run | Jun Mat Min Exi Min Turns Passed 1990 | 143 1039 324 392 92 Spaces Moved 1308 | 46 699 198 324 41 Core . | . . . . . Treads . | . . . . . Legs 1308 | 46 699 198 324 41 Wheels . | . . . . . Hover . | . . . . . Flight . | . . . . . Fastest Speed 120 | 120 120 120 120 120 Average Speed 120 | 120 120 120 120 120 Slowest Speed 120 | 120 120 120 120 120 Overloaded Moves . | . . . . . Propulsion Burnouts . | . . . . . Robots Hopped . | . . . . . Cave-ins Triggered . | . . . . . Exploration Rate (%) 41 | 3 85 41 63 15 Regions Visited 4 Branch Regions 3 Pre-discovered Areas . | . . . . . Known Exits Taken 1 | . 1 . . . Unknown Exits Taken 3 | 1 . 1 1 . Scrap Searched 2 | . . 1 . 1 Spaces Dug . | . . . . . Terrain Destroyed 133 | . . 42 . 91 Melee . | . . . . . Projectile . | . . . . . AOE 133 | . . 42 . 91 Terrain Rammed . | . . . . . Walls Destroyed . | . . . . . Machines Disabled . | . . . . . Actions | -11 -10 -10 -10 -9 --------- Run | Jun Mat Min Exi Min Total 1531 | 92 808 240 327 64 Wait 21 | 16 5 . . . Move 1304 | 45 698 197 323 41 Hop . | . . . . . Pick Up 22 | 1 16 3 . 2 Fast Attach 5 | 1 2 . 2 . Attach 8 | . 2 3 . 3 Detach . | . . . . . Swap 15 | 1 8 5 . 1 Drop 20 | 2 15 . 2 1 Fire 115 | 23 50 26 . 16 Melee . | . . . . . Ram . | . . . . . Kick 15 | 3 6 6 . . Crush . | . . . . . Escape Stasis . | . . . . . Rewire . | . . . . . Trap 6 | . 6 . . . Miscellaneous . | . . . . . Route ------- -11/Junkyard -10/Materials (discovered 4 exits: *Mat x3 / *Min) -10/Mines (discovered 2 exits: *Mat / *Exi) -10/Exiles (discovered 2 exits: [*Min x2]) -9/Mines History --------- Turn | Location | Event 12 | -11/Junkyard | Discovered new exit (range 2) 144 | -11/Junkyard | Entered Materials 190 | -10/Materials | Discovered new exit (range 16) 190 | -10/Materials | Identified exit to Materials 198 | -10/Materials | Identified exit to Mines 316 | -10/Materials | Build established: Mutant 1183 | -10/Materials | Entered Mines 1252 | -10/Mines | Lost 3 parts (1p1u1w) 1447 | -10/Mines | Discovered exit to Materials (range 11) 1474 | -10/Mines | Deemed a non-threat by the Exiles lab entrance 1474 | -10/Mines | Discovered new exit (range 5) 1507 | -10/Mines | Entered Exiles 1507 | -10/Exiles | Found Exiles lab abandoned 1523 | -10/Exiles | Discovered new exit (range 15) 1886 | -10/Exiles | Discovered new exit (range 14) 1899 | -10/Exiles | Entered Mines 1925 | -9/Mines | Assembled infested the area 1938 | -9/Mines | Met a Derelict bent on vengeance 1980 | -9/Mines | Core integrity fell below 50% 1981 | -9/Mines | Destroyed 19 combat bots 1989 | -9/Mines | Core integrity fell below 20% 1991 | -9/Mines | Destroyed by D-53 Grenadier with Mini Grenade Launcher Last Messages --------------- 01956_ The unstable cave ceiling collapses. 01960_ as-31246 destroyed. 01962_ The unstable cave ceiling collapses. 01974_ BGR61ZT 01977_ Acquired Aluminum Leg. 01978_ Acquired 41 matter. 01979_ C-30 ARC bursts open, deploying its payload. 01979_ D-53 Grenadier unfolds itself. 01979_ Ion Engine destroyed. 01981_ The unstable cave ceiling collapses. 01983_ Med. Armor Plating destroyed. 01983_ Assault Rifle destroyed. 01987_ The unstable cave ceiling collapses. 01989_ Lgt. Assault Rifle destroyed. 01989_ Imp. Aluminum Leg destroyed. 01990_ Lgt. Assault Rifle destroyed. 01991_ The unstable cave ceiling collapses. 01991_ Imp. Aluminum Leg destroyed. Map ----- +----------------------------------------------------+ | | | | | | | | | | | | | | | | | | | | | ?????????????###???????????????????????? | | ????????###### ####???????????????????? | | ????##### #????######?????????? | | ????? #???## ##????????? | | ??????" ##??# #????####? | | ???????? # #### #???## ## | | ?????????## # # ### ##?## ! | | ?????????# # ## ### ] | | ?????????## # # # | | ?????????# #### | | ?????????## ## ### # | | ??????????## # ##### ## | | ??????????## ###??## #? | | ???????????# ##?????#### ##? | | ???????????# #?????????## ##?? | | ???????????# @ #??????????#####??? | | ???????????# #?????????????????? | | ???????????## #?????????????????? | | ????????????# ##?????????????????? | | ???????????? d ##??????????????????? | | ??????????? #???????????????????? | | ??????????# #???????????????????? | | ??????????## d%##???????????????????? | | ???????????## ????????????????????? | | ????????????## ????????????????????? | | ?????????????## #????????????????????? | | ??????????????## #????????????????????? | | ???????????????? #????????????????????? | | ????????????????t #????????????????????? | | ???????????????? #????????????????????? | | ???????????????? ?????????????????????? | | ???????????????????????????????????????? | | ???????????????????????????????????????? | | ???????????????????????????????????????? | | ???????????????????????????????????????? | | ???????????????????????????????????????? | | ???????????????????????????????????????? | | ???????????????????????????????????????? | | ???????????????????????????????????????? | | ???????????????????????????????????????? | +----------------------------------------------------+ Best States ------------- Heat Dissipation 47 Energy Generation 14 Energy Capacity 250 Matter Stores 300 Matter Capacity 300 Sight Range 16 Terrain Scan Density 10 Armor Coverage 225 Evasion (%) 55 Item Schematics ----------------- None Robot Schematics ------------------ None Fabricated ------------ Nothing Alien Tech Used ----------------- None Achievements -------------- Hehehe Challenges ------------ None Game ------ Seed AuthchipAlertMatrix Manual? 0 Play Time 00:22:57 Cumulative 206.4 hours Start 2023.08.23 @ 14:27:31 End 2023.08.23 @ 14:52:24 Sessions 1 Manual Loads 0 Difficulty Rogue Special Mode None Game No. 175 Rogue 175 Adventurer 0 Explorer 0 Win Type - Total 10 Types 7/0/2/1/0/0/0/0/0 Lore% 81 Gallery% 69 Achievement% 58 Wizard Run 0 Options --------- ASCII 0 Keyboard 0 Movement Numpad Keybinds 0 Fullscreen 2 Font 18/Smallcaps Map View 76x50 Tactical HUD 1 Map Filters NONE Filters NONE Steam 1 RUN: 8cd24bf7-fae4-4078-87f2-ee7296341840